fUSD/lending_fUSD_20250611
["ID","MTS","AMOUNT","RATE_DAILY","PERIOD"]
[365413544,1749659445069,-960.05,0.00019178,2]
[365413545,1749659445078,-490.0,0.00019178,2]
[365413546,1749659445088,-480.0,0.00019178,2]
[365413547,1749659445098,-490.0,0.00019178,2]
[365413548,1749659445108,-490.0,0.00019178,2]
[365413549,1749659445117,-490.0,0.00019178,2]
[365413550,1749659445127,-490.0,0.00019178,2]
[365413551,1749659445137,-481.75873149,0.00019178,2]
[365413552,1749659445147,-770.52,0.00019178,2]
[365413553,1749659445156,-490.0,0.00019178,2]
[365413554,1749659445168,-490.0,0.00019178,2]
[365413555,1749659445178,-867.66,0.00019178,2]
[365413556,1749659445188,-490.0,0.00019178,2]
[365413557,1749659445198,-490.0,0.00019178,2]
[365413558,1749659445208,-422.64116115,0.00019178,2]
[365413559,1749659445219,-480.0,0.00019178,2]
[365413560,1749659445228,-515.01197076,0.00019178,2]
[365413561,1749659445238,-480.0,0.00019178,2]
[365413562,1749659445249,-490.0,0.00019178,2]
[365413563,1749659445259,-490.0,0.00019178,2]
[365413564,1749659445269,-432.13984982,0.00019178,2]
[365413565,1749659445279,-490.0,0.00019178,2]
[365413566,1749659445289,-490.0,0.00019178,2]
[365413567,1749659445298,-490.0,0.00019178,2]
[365413568,1749659445308,-490.0,0.00019178,2]
[365413569,1749659445318,-490.0,0.00019178,2]
[365413570,1749659445327,-1092.16,0.00019178,2]
[365413571,1749659445337,-490.0,0.00019178,2]
[365413572,1749659445347,-577.14,0.00019178,2]
[365413573,1749659445357,-490.0,0.00019178,2]
[365413574,1749659445366,-480.0,0.00019178,2]
[365413575,1749659445376,-1109.56,0.00019178,2]
[365413576,1749659445386,-480.0,0.00019178,2]
[365413577,1749659445396,-490.0,0.00019178,2]
[365413578,1749659445619,-490.0,0.00019178,2]
[365413579,1749659445629,-480.0,0.00019178,2]
[365413580,1749659445639,-490.0,0.00019178,2]
[365413581,1749659445649,-490.0,0.00019178,2]
[365413582,1749659445658,-529.09,0.00019178,2]
[365413583,1749659445668,-490.0,0.00019178,2]
[365413584,1749659445677,-490.0,0.00019178,2]
[365413585,1749659445687,-490.0,0.00019178,2]
[365413586,1749659445698,-490.0,0.00019178,2]
[365413587,1749659445707,-490.0,0.00019178,2]
[365413588,1749659445717,-490.0,0.00019178,2]
[365413589,1749659445726,-490.0,0.00019178,2]
[365413590,1749659445736,-500.41139669,0.00019178,2]
[365413591,1749659445747,-852.44,0.00019178,2]
[365413592,1749659445756,-425.76098945,0.00019178,2]
[365413593,1749659445767,-490.0,0.00019178,2]
[365413595,1749659445776,-254.57297145,0.00019178,2]
[365413597,1749659445786,-550.52,0.00019178,2]
[365413598,1749659445796,-490.0,0.00019178,2]
[365413599,1749659445805,-491.19723,0.00019178,2]
[365413600,1749659445815,-490.0,0.00019178,2]
[365413601,1749659445824,-490.0,0.00019178,2]
[365413602,1749659445834,-490.0,0.00019178,2]
[365413603,1749659445844,-490.0,0.00019178,2]
[365413604,1749659445853,-490.0,0.00019178,2]
[365413605,1749659445862,-711.03,0.00019178,2]
[365413606,1749659445871,-490.0,0.00019178,2]
[365413607,1749659445880,-509.38,0.00019178,2]
[365413608,1749659445889,-490.0,0.00019178,2]
[365413609,1749659445899,-490.0,0.00019178,2]
[365413610,1749659445908,-490.0,0.00019178,2]
[365413611,1749659445922,-490.0,0.00019178,2]
[365413612,1749659445932,-490.0,0.00019178,2]
[365413613,1749659445941,-490.0,0.00019178,2]
[365413614,1749659445951,-490.0,0.00019178,2]
[365413615,1749659445961,-577.5,0.00019178,2]
[365413616,1749659445971,-490.0,0.00019178,2]
[365413617,1749659445980,-490.0,0.00019178,2]
[365413618,1749659445990,-500.0,0.00019178,2]
[365413619,1749659446000,-490.0,0.00019178,2]
[365413620,1749659446010,-490.0,0.00019178,2]
[365413621,1749659446019,-462.27767139,0.00019178,2]
[365413622,1749659446029,-490.0,0.00019178,2]
[365413623,1749659446038,-490.0,0.00019178,2]
[365413624,1749659446048,-490.0,0.00019178,2]
[365413625,1749659446057,-490.0,0.00019178,2]
[365413626,1749659446067,-490.0,0.00019178,2]
[365413627,1749659446076,-500.0,0.00019178,2]
[365413628,1749659446086,-500.0,0.00019178,2]
[365413629,1749659446095,-954.99,0.00019178,2]
[365413630,1749659446105,-490.0,0.00019178,2]
[365413631,1749659446114,-490.0,0.00019178,2]
[365413632,1749659446124,-490.0,0.00019178,2]
[365413633,1749659446134,-805.54,0.00019178,2]
[365413634,1749659446144,-490.0,0.00019178,2]
[365413635,1749659446154,-490.0,0.00019178,2]
[365413636,1749659446163,-248.98955035,0.00019178,2]
[365413637,1749659446172,-490.0,0.00019178,2]
[365413638,1749659446182,-490.0,0.00019178,2]
[365413639,1749659446191,-425.51235583,0.00019178,2]
[365413640,1749659446201,-490.0,0.00019178,2]
[365413641,1749659446211,-490.0,0.00019178,2]
[365413642,1749659446220,-490.0,0.00019178,2]
[365413643,1749659446230,-490.0,0.00019178,2]
[365413644,1749659446240,-549.11,0.00019178,2]
[365413645,1749659446252,-490.0,0.00019178,2]
[365413646,1749659446262,-490.0,0.00019178,2]
[365413647,1749659446271,-500.0,0.00019178,2]
[365413648,1749659446280,-500.0,0.00019178,2]
[365413649,1749659446290,-490.0,0.00019178,2]
[365413650,1749659446299,-490.0,0.00019178,2]
[365413651,1749659446308,-490.0,0.00019178,2]
[365413652,1749659446318,-490.0,0.00019178,2]
[365413653,1749659446327,-541.41,0.00019178,2]
[365413654,1749659446336,-490.0,0.00019178,2]
[365413655,1749659446346,-490.0,0.00019178,2]
[365413656,1749659446355,-566.53,0.00019178,2]
[365413657,1749659446365,-490.0,0.00019178,2]
[365413659,1749659446375,-490.0,0.00019178,2]
[365413661,1749659446384,-490.0,0.00019178,2]
[365413663,1749659446394,-490.0,0.00019178,2]
[365413665,1749659446403,-490.0,0.00019178,2]
[365413667,1749659446412,-490.0,0.00019178,2]
[365413669,1749659446422,-490.0,0.00019178,2]
[365413671,1749659446431,-490.0,0.00019178,2]
[365413673,1749659446440,-490.0,0.00019178,2]
[365413675,1749659446449,-480.0,0.00019178,2]
[365413677,1749659446459,-482.43921478,0.00019178,2]
[365413678,1749659446468,-490.0,0.00019178,2]
[365413679,1749659446477,-480.0,0.00019178,2]
[365413680,1749659446486,-1123.73,0.00019178,2]
[365413681,1749659446498,-490.0,0.00019178,2]
[365413682,1749659446507,-490.0,0.00019178,2]
[365413683,1749659446516,-480.54515382,0.00019178,2]
[365413684,1749659446525,-480.0,0.00019178,2]
[365413685,1749659446535,-637.39,0.00019178,2]
[365413686,1749659446547,-490.0,0.00019178,2]
[365413687,1749659446556,-490.0,0.00019178,2]
[365413688,1749659446565,-584.0766811,0.00019178,2]
[365413689,1749659446574,-490.0,0.00019178,2]
[365413690,1749659446584,-490.0,0.00019178,2]
[365413691,1749659446593,-490.0,0.00019178,2]
[365413692,1749659446603,-480.81051095,0.00019178,2]
[365413693,1749659446612,-918.28,0.00019178,2]
[365413694,1749659446622,-490.0,0.00019178,2]
[365413695,1749659446632,-490.0,0.00019178,2]
[365413696,1749659446642,-490.0,0.00019178,2]
[365413697,1749659446651,-490.0,0.00019178,2]
[365413698,1749659446661,-490.0,0.00019178,2]
[365413699,1749659446671,-490.0,0.00019178,2]
[365413700,1749659446680,-490.0,0.00019178,2]
[365413701,1749659446690,-490.0,0.00019178,2]
[365413702,1749659446700,-480.0,0.00019178,2]
[365413703,1749659446711,-490.0,0.00019178,2]
[365413704,1749659446720,-480.0,0.00019178,2]
[365413705,1749659446730,-665.72,0.00019178,2]
[365413706,1749659446739,-490.0,0.00019178,2]
[365413707,1749659446750,-490.0,0.00019178,2]
[365413708,1749659446760,-490.0,0.00019178,2]
[365413709,1749659446769,-480.0,0.00019178,2]
[365413710,1749659446779,-491.00956256,0.00019178,2]
[365413711,1749659446789,-480.0,0.00019178,2]
[365413712,1749659446799,-490.0,0.00019178,2]
[365413713,1749659446808,-356.45483035,0.00019178,2]
[365413714,1749659446817,-500.0,0.00019178,2]
[365413715,1749659446827,-895.76,0.00019178,2]
[365413716,1749659446837,-490.0,0.00019178,2]
[365413717,1749659446846,-480.0,0.00019178,2]
[365413718,1749659446855,-420.0,0.00019178,2]
[365413719,1749659446865,-420.0,0.00019178,2]
[365413720,1749659446874,-490.0,0.00019178,2]
[365413721,1749659446883,-490.0,0.00019178,2]
[365413722,1749659446892,-490.0,0.00019178,2]
[365413723,1749659446902,-480.0,0.00019178,2]
[365413724,1749659446914,-490.0,0.00019178,2]
[365413725,1749659446924,-490.0,0.00019178,2]
[365413726,1749659446933,-490.0,0.00019178,2]
[365413727,1749659446944,-490.0,0.00019178,2]
[365413728,1749659446954,-490.0,0.00019178,2]
[365413729,1749659446963,-480.0,0.00019178,2]
[365413730,1749659446973,-490.0,0.00019178,2]
[365413731,1749659446982,-490.0,0.00019178,2]
[365413732,1749659446993,-490.0,0.00019178,2]
[365413733,1749659447003,-490.0,0.00019178,2]
[365413734,1749659447012,-588.31,0.00019178,2]
[365413735,1749659447021,-490.0,0.00019178,2]
[365413736,1749659447031,-490.0,0.00019178,2]
[365413737,1749659447040,-490.0,0.00019178,2]
[365413738,1749659447050,-490.0,0.00019178,2]
[365413739,1749659447059,-490.0,0.00019178,2]
[365413740,1749659447069,-490.0,0.00019178,2]
[365413741,1749659447079,-490.0,0.00019178,2]
[365413742,1749659447088,-490.0,0.00019178,2]
[365413743,1749659447098,-490.0,0.00019178,2]
[365413744,1749659447107,-490.0,0.00019178,2]
[365413745,1749659447116,-490.0,0.00019178,2]
[365413746,1749659447126,-490.0,0.00019178,2]
[365413747,1749659447136,-490.0,0.00019178,2]
[365413748,1749659447145,-490.0,0.00019178,2]
[365413749,1749659447154,-440.7339059,0.00019178,2]
[365413750,1749659447163,-490.0,0.00019178,2]
[365413751,1749659447173,-588.0,0.00019178,2]
[365413752,1749659447182,-490.0,0.00019178,2]
[365413753,1749659447192,-490.0,0.00019178,2]
[365413754,1749659447201,-490.0,0.00019178,2]
[365413755,1749659447210,-490.0,0.00019178,2]
[365413756,1749659447219,-490.0,0.00019178,2]
[365413757,1749659447228,-480.0,0.00019178,2]
[365413758,1749659447238,-490.0,0.00019178,2]
[365413759,1749659447249,-490.0,0.00019178,2]
[365413760,1749659447258,-339.57790588,0.00019178,2]
[365413761,1749659447267,-490.0,0.00019178,2]
[365413762,1749659447277,-1492.79,0.00019178,2]
[365413763,1749659447286,-490.0,0.00019178,2]
[365413764,1749659447295,-642.87,0.00019178,2]
[365413765,1749659447304,-490.0,0.00019178,2]
[365413766,1749659447314,-490.0,0.00019178,2]
[365413767,1749659447323,-490.0,0.00019178,2]
[365413768,1749659447332,-675.62,0.00019178,2]
[365413769,1749659447341,-490.0,0.00019178,2]
[365413770,1749659447352,-490.0,0.00019178,2]
[365413771,1749659447362,-490.0,0.00019178,2]
[365413772,1749659447371,-490.0,0.00019178,2]
[365413773,1749659447380,-502.23,0.00019178,2]
[365413774,1749659447390,-490.0,0.00019178,2]
[365413775,1749659447399,-490.0,0.00019178,2]
[365413776,1749659447410,-490.0,0.00019178,2]
[365413777,1749659447419,-490.0,0.00019178,2]
[365413778,1749659447427,-515.22,0.00019178,2]
[365413779,1749659447437,-490.0,0.00019178,2]
[365413780,1749659447446,-480.0,0.00019178,2]
[365413781,1749659447455,-490.0,0.00019178,2]
[365413782,1749659447464,-490.0,0.00019178,2]
[365413783,1749659447473,-490.0,0.00019178,2]
[365413784,1749659447483,-490.0,0.00019178,2]
[365413785,1749659447494,-480.0,0.00019178,2]
[365413786,1749659447503,-592.05,0.00019178,2]
[365413787,1749659447512,-490.0,0.00019178,2]
[365413788,1749659447522,-480.0,0.00019178,2]
[365413789,1749659447531,-1000.0,0.00019178,2]
[365413790,1749659447541,-490.0,0.00019178,2]
[365413791,1749659447550,-490.0,0.00019178,2]
[365413792,1749659447558,-490.0,0.00019178,2]
[365413793,1749659447567,-480.0,0.00019178,2]
[365413794,1749659447577,-490.0,0.00019178,2]
[365413795,1749659447586,-490.0,0.00019178,2]
[365413796,1749659447595,-490.0,0.00019178,2]
[365413797,1749659447605,-1555.21,0.00019178,2]
[365413798,1749659447614,-490.0,0.00019178,2]
[365413799,1749659447624,-555.61145112,0.00019178,2]
[365413800,1749659447633,-480.0,0.00019178,2]
[365413801,1749659447642,-490.0,0.00019178,2]
[365413802,1749659447651,-655.93,0.00019178,2]
[365413803,1749659447660,-490.0,0.00019178,2]
[365413804,1749659447670,-480.0,0.00019178,2]
[365413805,1749659447679,-212.68867042,0.00019178,2]
[365413806,1749659447688,-549.6,0.00019178,2]
[365413807,1749659447698,-480.0,0.00019178,2]
[365413808,1749659447707,-527.96,0.00019178,2]
[365413809,1749659447717,-634.06,0.00019178,2]
[365413810,1749659447727,-490.0,0.00019178,2]
[365413811,1749659447737,-184.33604983,0.00019178,2]
[365413812,1749659447751,-660.87,0.00019178,2]
[365413813,1749659447761,-490.0,0.00019178,2]
[365413814,1749659447771,-490.0,0.00019178,2]
[365413815,1749659447781,-490.0,0.00019178,2]
[365413816,1749659447790,-490.0,0.00019178,2]
[365413817,1749659447799,-480.0,0.00019178,2]
[365413818,1749659447809,-490.0,0.00019178,2]
[365413819,1749659447818,-491.37420982,0.00019178,2]
[365413820,1749659447828,-490.0,0.00019178,2]
[365413821,1749659447838,-490.0,0.00019178,2]
[365413822,1749659447847,-490.0,0.00019178,2]
[365413823,1749659447856,-529.34,0.00019178,2]
[365413824,1749659447867,-504.48,0.00019178,2]
[365413825,1749659447876,-490.0,0.00019178,2]
[365413826,1749659447886,-490.0,0.00019178,2]
[365413827,1749659447895,-490.0,0.00019178,2]
[365413828,1749659447905,-490.0,0.00019178,2]
[365413829,1749659447916,-490.0,0.00019178,2]
[365413830,1749659447926,-490.0,0.00019178,2]
[365413831,1749659447935,-490.0,0.00019178,2]
[365413832,1749659447945,-1134.15,0.00019178,2]
[365413833,1749659448034,-480.0,0.00019178,2]
[365413834,1749659448045,-490.0,0.00019178,2]
[365413835,1749659448056,-803.66,0.00019178,2]
[365413836,1749659448066,-420.97589896,0.00019178,2]
[365413837,1749659448076,-535.04,0.00019178,2]
[365413838,1749659448087,-640.88,0.00019178,2]
[365413839,1749659448097,-490.0,0.00019178,2]
[365413840,1749659448106,-2007.73,0.00019178,2]
[365413841,1749659448116,-490.0,0.00019178,2]
[365413842,1749659448126,-490.0,0.00019178,2]
[365413843,1749659448136,-823.66,0.00019178,2]
[365413844,1749659448147,-490.0,0.00019178,2]
[365413845,1749659448156,-530.86,0.00019178,2]
[365413846,1749659448166,-403.75,0.00019178,2]
[365413847,1749659448176,-490.0,0.00019178,2]
[365413848,1749659448186,-490.0,0.00019178,2]
[365413849,1749659448195,-490.0,0.00019178,2]
[365413850,1749659448205,-490.0,0.00019178,2]
[365413851,1749659448215,-490.0,0.00019178,2]
[365413852,1749659448225,-490.0,0.00019178,2]
[365413853,1749659448235,-1252.43,0.00019178,2]
[365413854,1749659448247,-490.0,0.00019178,2]
[365413855,1749659448257,-490.0,0.00019178,2]
[365413856,1749659448267,-490.0,0.00019178,2]
[365413857,1749659448276,-688.0,0.00019178,2]
[365413858,1749659448286,-490.0,0.00019178,2]
[365413859,1749659448295,-490.0,0.00019178,2]
[365413860,1749659448304,-490.0,0.00019178,2]
[365413861,1749659448314,-490.0,0.00019178,2]
[365413862,1749659448324,-480.0,0.00019178,2]
[365413863,1749659448333,-943.02,0.00019178,2]
[365413864,1749659448343,-490.0,0.00019178,2]
[365413865,1749659448353,-490.0,0.00019178,2]
[365413866,1749659448363,-490.0,0.00019178,2]
[365413867,1749659448372,-490.0,0.00019178,2]
[365413868,1749659448381,-490.0,0.00019178,2]
[365413869,1749659448390,-1366.25,0.00019178,2]
[365413870,1749659448400,-490.0,0.00019178,2]
[365413871,1749659448410,-564.64,0.00019178,2]
[365413872,1749659448420,-490.0,0.00019178,2]
[365413873,1749659448429,-490.0,0.00019178,2]
[365413874,1749659448438,-2104.66,0.00019178,2]
[365413875,1749659448448,-490.0,0.00019178,2]
[365413876,1749659448457,-490.0,0.00019178,2]
[365413877,1749659448466,-2532.81,0.00019178,2]
[365413878,1749659448475,-490.0,0.00019178,2]
[365413879,1749659448484,-490.0,0.00019178,2]
[365413880,1749659448495,-490.0,0.00019178,2]
[365413881,1749659448505,-950.93,0.00019178,2]
[365413882,1749659448514,-643.41,0.00019178,2]
[365413883,1749659448524,-490.0,0.00019178,2]
[365413884,1749659448533,-490.0,0.00019178,2]
[365413885,1749659448543,-1003.05,0.00019178,2]
[365413886,1749659448552,-2585.51,0.00019178,2]
[365413887,1749659448561,-490.0,0.00019178,2]
[365413888,1749659448570,-490.0,0.00019178,2]
[365413889,1749659448580,-490.0,0.00019178,2]
[365413890,1749659448589,-783.98,0.00019178,2]
[365413891,1749659448599,-490.0,0.00019178,2]
[365413892,1749659448607,-490.0,0.00019178,2]
[365413893,1749659448616,-556.12,0.00019178,2]
[365413894,1749659448626,-490.0,0.00019178,2]
[365413895,1749659448635,-490.0,0.00019178,2]
[365413896,1749659448644,-644.59,0.00019178,2]
[365413897,1749659448654,-490.0,0.00019178,2]
[365413898,1749659448664,-490.0,0.00019178,2]
[365413899,1749659448674,-490.0,0.00019178,2]
[365413900,1749659448684,-490.0,0.00019178,2]
[365413901,1749659448694,-578.43,0.00019178,2]
[365413902,1749659448703,-480.0,0.00019178,2]
[365413903,1749659448712,-490.0,0.00019178,2]
[365413904,1749659448721,-490.0,0.00019178,2]
[365413905,1749659448731,-627.85,0.00019178,2]
[365413906,1749659448741,-535.51,0.00019178,2]
[365413907,1749659448752,-490.0,0.00019178,2]
[365413908,1749659448762,-3412.54,0.00019178,2]
[365413909,1749659448771,-490.0,0.00019178,2]
[365413910,1749659448781,-1403.51,0.00019178,2]
[365413911,1749659448791,-870.96,0.00019178,2]
[365413912,1749659448801,-608.93842003,0.00019178,2]
[365413913,1749659448811,-4458.67,0.00019178,2]
[365413914,1749659448822,-490.0,0.00019178,2]
[365413915,1749659448831,-1723.3,0.00019178,2]
[365413916,1749659448841,-490.0,0.00019178,2]
[365413917,1749659448851,-557.49,0.00019178,2]
[365413918,1749659448861,-542.12,0.00019178,2]
[365413919,1749659448871,-569.09,0.00019178,2]
[365413920,1749659448882,-6661.21,0.00019178,2]
[365413921,1749659448892,-861.88,0.00019178,2]
[365413922,1749659448902,-2347.02,0.00019178,2]
[365413923,1749659448912,-490.0,0.00019178,2]
[365413924,1749659448925,-490.0,0.00019178,2]
[365413925,1749659448936,-498.48,0.00019178,2]
[365413926,1749659448946,-1046.86,0.00019178,2]
[365413927,1749659448958,-948.12,0.00019178,2]
[365413928,1749659448968,-480.0,0.00019178,2]
[365413929,1749659448978,-627.47,0.00019178,2]
[365413930,1749659448989,-549.31,0.00019178,2]
[365413931,1749659449002,-490.0,0.00019178,2]
[365413932,1749659449012,-436.84970031,0.00019178,2]
[365413933,1749659449022,-490.0,0.00019178,2]
[365413934,1749659449032,-1000.0,0.00019178,2]
[365413935,1749659449042,-490.0,0.00019178,2]
[365413936,1749659449052,-490.0,0.00019178,2]
[365413937,1749659449062,-490.0,0.00019178,2]
[365413938,1749659449072,-667.58,0.00019178,2]
[365413939,1749659449084,-490.0,0.00019178,2]
[365413940,1749659449095,-1034.0,0.00019178,2]
[365413941,1749659449107,-490.0,0.00019178,2]
[365413942,1749659449117,-2814.72,0.00019178,2]
[365413943,1749659449128,-1021.41,0.00019178,2]
[365413944,1749659449139,-559.31,0.00019178,2]
[365413945,1749659449150,-490.0,0.00019178,2]
[365413946,1749659449160,-402.41256748,0.00019178,2]
[365413947,1749659449171,-637.92,0.00019178,2]
[365413948,1749659449181,-480.0,0.00019178,2]
[365413949,1749659449192,-490.0,0.00019178,2]
[365413950,1749659449202,-526.53,0.00019178,2]
[365413951,1749659449212,-490.0,0.00019178,2]
[365413952,1749659449222,-490.0,0.00019178,2]
[365413953,1749659449232,-801.82,0.00019178,2]
[365413954,1749659449243,-515.67,0.00019178,2]
[365413955,1749659449253,-1063.75,0.00019178,2]
[365413956,1749659449264,-490.0,0.00019178,2]
[365413957,1749659449274,-490.0,0.00019178,2]
[365413958,1749659449285,-842.41,0.00019178,2]
[365413959,1749659449295,-490.0,0.00019178,2]
[365413960,1749659449306,-490.0,0.00019178,2]
[365413961,1749659449317,-4236.43,0.00019178,2]
[365413962,1749659449328,-2674.81,0.00019178,2]
[365413963,1749659449339,-490.0,0.00019178,2]
[365413964,1749659449350,-2674.81,0.00019178,2]
[365413965,1749659449360,-1106.91,0.00019178,2]
[365413966,1749659449370,-490.0,0.00019178,2]
[365413967,1749659449381,-1245.15,0.00019178,2]
[365413968,1749659449391,-933.25,0.00019178,2]
[365413969,1749659449401,-480.0,0.00019178,2]
[365413970,1749659449411,-490.0,0.00019178,2]
[365413971,1749659449421,-490.0,0.00019178,2]
[365413972,1749659449431,-300.85164436,0.00019178,2]
[365413973,1749659449441,-490.0,0.00019178,2]
[365413974,1749659449451,-722.76,0.00019178,2]
[365413975,1749659449462,-480.0,0.00019178,2]
[365413976,1749659449472,-332.20416337,0.00019178,2]
[365413977,1749659449482,-490.0,0.00019178,2]
[365413978,1749659449494,-490.0,0.00019178,2]
[365413979,1749659449504,-490.0,0.00019178,2]
[365413980,1749659449515,-490.0,0.00019178,2]
[365413981,1749659449525,-490.0,0.00019178,2]
[365413982,1749659449536,-480.0,0.00019178,2]
[365413983,1749659449546,-490.0,0.00019178,2]
[365413984,1749659449556,-655.93,0.00019178,2]
[365413985,1749659449566,-490.0,0.00019178,2]
[365413986,1749659449576,-1852.02,0.00019178,2]
[365413987,1749659449586,-1432.22,0.00019178,2]
[365413988,1749659449596,-178.71545539,0.00019178,2]
[365413989,1749659449606,-490.0,0.00019178,2]
[365413990,1749659449617,-480.0,0.00019178,2]
[365413991,1749659449627,-1651.57,0.00019178,2]
[365413992,1749659449637,-560.84,0.00019178,2]
[365413993,1749659449648,-460.0,0.00019178,2]
[365413994,1749659449658,-490.0,0.00019178,2]
[365413995,1749659449668,-490.0,0.00019178,2]
[365413996,1749659449679,-757.21,0.00019178,2]
[365413997,1749659449690,-490.0,0.00019178,2]
[365413998,1749659449700,-789.14,0.00019178,2]
[365413999,1749659449710,-490.0,0.00019178,2]
[365414000,1749659449720,-6469.17,0.00019178,2]
[365414001,1749659449731,-490.0,0.00019178,2]
[365414002,1749659449741,-490.0,0.00019178,2]
[365414003,1749659449752,-490.0,0.00019178,2]
[365414004,1749659449763,-460.9832726,0.00019178,2]
[365414005,1749659449774,-490.0,0.00019178,2]
[365414006,1749659449784,-735.3,0.00019178,2]
[365414007,1749659449794,-490.0,0.00019178,2]
[365414008,1749659449804,-494.79,0.00019178,2]
[365414009,1749659449814,-490.0,0.00019178,2]
[365414010,1749659449824,-480.0,0.00019178,2]
[365414011,1749659449834,-490.0,0.00019178,2]
[365414012,1749659449844,-490.0,0.00019178,2]
[365414013,1749659449855,-490.0,0.00019178,2]
[365414014,1749659449865,-490.0,0.00019178,2]
[365414015,1749659449875,-490.0,0.00019178,2]
[365414016,1749659449885,-573.1,0.00019178,2]
[365414017,1749659449895,-490.0,0.00019178,2]
[365414018,1749659449906,-1960.98,0.00019178,2]
[365414019,1749659449919,-1571.0,0.00019178,2]
[365414020,1749659449929,-490.0,0.00019178,2]
[365414021,1749659449940,-490.0,0.00019178,2]
[365414022,1749659449957,-490.0,0.00019178,2]
[365414023,1749659449973,-490.0,0.00019178,2]
[365414024,1749659449990,-778.39,0.00019178,2]
[365414025,1749659450004,-490.0,0.00019178,2]
[365414026,1749659450018,-1011.85,0.00019178,2]
[365414027,1749659450032,-480.0,0.00019178,2]
[365414028,1749659450046,-653.71,0.00019178,2]
[365414029,1749659450061,-490.0,0.00019178,2]
[365414030,1749659450074,-691.22,0.00019178,2]
[365414031,1749659450085,-630.86,0.00019178,2]
[365414032,1749659450099,-480.0,0.00019178,2]
[365414033,1749659450113,-480.0,0.00019178,2]
[365414034,1749659450127,-490.0,0.00019178,2]
[365414035,1749659450142,-490.0,0.00019178,2]
[365414036,1749659450157,-490.0,0.00019178,2]
[365414037,1749659450170,-1195.35,0.00019178,2]
[365414038,1749659450186,-490.0,0.00019178,2]
[365414039,1749659450199,-490.0,0.00019178,2]
[365414040,1749659450213,-535.61,0.00019178,2]
[365414041,1749659450228,-490.0,0.00019178,2]
[365414042,1749659450242,-490.0,0.00019178,2]
[365414043,1749659450258,-490.0,0.00019178,2]
[365414044,1749659450275,-664.35,0.00019178,2]
[365414045,1749659450289,-490.0,0.00019178,2]
[365414046,1749659450301,-1538.14,0.00019178,2]
[365414047,1749659450313,-795.2,0.00019178,2]
[365414048,1749659450326,-490.0,0.00019178,2]
[365414049,1749659450342,-490.0,0.00019178,2]
[365414050,1749659450353,-490.0,0.00019178,2]
[365414051,1749659450364,-490.0,0.00019178,2]
[365414052,1749659450375,-450.0,0.00019178,2]
[365414053,1749659450391,-725.25,0.00019178,2]
[365414054,1749659450404,-490.0,0.00019178,2]
[365414055,1749659450414,-490.0,0.00019178,2]